bitfinex/quotes_SOLUSD_20220116
["timestamp","ask_amount","ask_price","bid_price","bid_amount"]
[1642356410459,1.79790069,149.7,149.62,82.59824592]
[1642356410863,1.79790069,149.7,149.62,81.41405246]
[1642356411260,1.79790069,149.7,149.62,82.59824592]
[1642356412261,1.79790069,149.71,149.62,82.59824592]
[1642356412464,1.79790069,149.71,149.63,30.6875]
[1642356412862,1.79790069,149.71,149.63,30.9375]
[1642356413065,39.21507328,149.72,149.63,30.9375]
[1642356413663,39.21507328,149.72,149.63,30.6875]
[1642356413864,39.21507328,149.72,149.63,30.9375]
[1642356414064,39.21507328,149.72,149.63,30.6875]
[1642356414766,1.79790069,149.71,149.63,30.6875]
[1642356415667,1.79790069,149.71,149.63,30.9375]
[1642356416267,1.79790069,149.71,149.63,30.6875]
[1642356416465,1.79790069,149.71,149.63,32.12169346]
[1642356416764,1.79790069,149.71,149.63,30.9375]
[1642356417666,1.79790069,149.71,149.65,8.0158]
[1642356417866,1.79790069,149.71,149.65,8.2658]
[1642356418469,37.41717259,149.72,149.65,8.2658]
[1642356419666,37.41717259,149.72,149.65,9.44999346]
[1642356419869,1.3306367,149.72,149.65,9.44999346]
[1642356420067,1.3306367,149.72,149.65,82.27999346]
[1642356420268,1.3306367,149.72,149.65,76.27999346]
[1642356420667,1.3306367,149.72,149.65,81.0958]
[1642356421268,1.3306367,149.72,149.65,82.27999346]
[1642356421471,1.3306367,149.72,149.65,81.0958]
[1642356421773,1.3306367,149.72,149.66,1.18419346]
[1642356422069,1.3306367,149.72,149.67,34.07499753]
[1642356422471,1.3306367,149.72,149.67,34.32499753]
[1642356423475,1.3306367,149.72,149.67,34.07499753]
[1642356423972,49.35453157,149.71,149.67,34.07499753]
[1642356424199,1.3306367,149.72,149.67,34.07499753]
[1642356425100,47.93978987,149.72,149.67,34.07499753]
[1642356425901,47.93978987,149.72,149.66,24.9127]
[1642356426401,45.43978987,149.72,149.66,24.9127]
[1642356427000,45.43978987,149.72,149.64,36.08823553]
[1642356427704,57.26029056,149.72,149.62,22.9622]
[1642356427902,57.26029056,149.72,149.62,28.9622]
[1642356428301,57.26029056,149.72,149.62,29.2122]
[1642356428302,1.79790069,149.71,149.62,29.2122]
[1642356428901,1.79790069,149.71,149.62,30.39676147]
[1642356429104,26.21260069,149.71,149.62,30.39676147]
[1642356429303,26.21260069,149.71,149.62,29.2122]
[1642356429703,26.21260069,149.71,149.62,23.2122]
[1642356430505,36.23600069,149.71,149.62,23.2122]
[1642356430804,34.4381,149.71,149.62,23.2122]
[1642356431706,36.23600069,149.71,149.62,23.2122]
[1642356432909,26.21260069,149.71,149.62,23.2122]
[1642356433109,26.21260069,149.71,149.63,1.18492944]
[1642356433310,26.21260069,149.71,149.64,8.08711714]
[1642356433709,47.23769056,149.72,149.64,8.33711714]
[1642356434511,45.43978987,149.72,149.64,8.33711714]
[1642356435311,47.23769056,149.72,149.64,32.02081714]
[1642356437412,1.79790069,149.72,149.64,32.02081714]
[1642356437812,1.79790069,149.73,149.64,32.02081714]
[1642356438213,1.79790069,149.73,149.64,40.03711714]
[1642356438415,50.44549501,149.73,149.64,40.03711714]
[1642356439216,50.44549501,149.73,149.64,106.86711714]
[1642356439514,50.44549501,149.73,149.64,108.05204658]
[1642356441115,1.79790069,149.73,149.64,108.05204658]
[1642356441417,1.79790069,149.73,149.65,9.86]
[1642356441615,1.79790069,149.73,149.68,66.83]
[1642356442016,1.79790069,149.73,149.68,0.25]
[1642356442214,1.79790069,149.73,149.68,33.72389615]
[1642356442716,1.26396325,149.75,149.68,33.72389615]
[1642356442916,1.26396325,149.75,149.68,57.44229615]
[1642356443415,1.26396325,149.75,149.69,8.0139]
[1642356444017,1.26396325,149.75,149.68,57.44229615]
[1642356444216,48.31453949,149.74,149.68,62.1034518]
[1642356445521,48.31453949,149.74,149.68,61.8534518]
[1642356447823,50.11244018,149.74,149.68,61.8534518]
[1642356448022,50.11244018,149.74,149.68,62.1034518]
[1642356448222,50.11244018,149.74,149.68,61.8534518]
[1642356448423,50.11244018,149.74,149.68,23.7184]
[1642356449225,50.11244018,149.74,149.65,17.6158]
[1642356449422,50.11244018,149.74,149.65,23.8658]
[1642356449626,50.11244018,149.74,149.66,33.98702748]
[1642356449823,50.11244018,149.74,149.66,39.98702748]
[1642356450024,50.11244018,149.74,149.66,64.50312748]
[1642356450427,50.11244018,149.74,149.66,66.51842748]
[1642356450825,50.11244018,149.74,149.66,66.76842748]
[1642356451126,1.79790069,149.74,149.66,67.95335692]
[1642356451327,1.79790069,149.74,149.66,77.55335692]
[1642356451828,1.79790069,149.74,149.66,83.55335692]
[1642356452027,45.52979734,149.74,149.66,83.55335692]
[1642356452427,45.52979734,149.74,149.67,66.83]
[1642356452626,43.73189665,149.74,149.67,66.83]
[1642356452829,43.73189665,149.74,149.7,7.57398581]
[1642356453026,43.73189665,149.74,149.69,8.0138]
[1642356453227,43.73189665,149.74,149.69,0.25]
[1642356454329,43.73189665,149.74,149.68,24.673]
[1642356454530,1.26396325,149.75,149.68,24.673]
[1642356454928,1.79790069,149.76,149.68,24.673]
[1642356455330,1.79790069,149.76,149.68,30.673]
[1642356455528,46.67086625,149.75,149.68,38.6873]
[1642356457234,46.67086625,149.75,149.68,38.4373]
[1642356457431,46.67086625,149.75,149.68,105.2673]
[1642356457859,46.67086625,149.75,149.68,32.4373]
[1642356458435,46.67086625,149.75,149.68,42.0373]
[1642356458633,46.67086625,149.75,149.68,42.2873]
[1642356460532,46.67086625,149.75,149.68,48.2873]
[1642356460733,1.79790069,149.77,149.68,48.2873]
[1642356461137,1.79790069,149.77,149.71,8.012]
[1642356461336,1.79790069,149.77,149.71,8.262]
[1642356461735,1.79790069,149.77,149.72,12.21315927]
[1642356461936,1.79790069,149.77,149.72,12.46315927]
[1642356462338,46.02444131,149.79,149.72,12.46315927]
[1642356463037,46.02444131,149.79,149.72,20.47535927]
[1642356463435,0.7,149.77,149.72,20.47535927]
[1642356469040,36.66775339,149.77,149.72,20.47535927]
[1642356469241,36.66775339,149.77,149.72,0.25]
[1642356469442,36.66775339,149.77,149.71,24.6361]
[1642356469643,36.66775339,149.77,149.67,1.18492944]
[1642356469843,24.4421,149.76,149.7,0.25]
[1642356470842,24.4421,149.76,149.68,48.90612868]
[1642356471243,26.24000069,149.76,149.68,48.90612868]
[1642356471443,26.24000069,149.76,149.68,8.2642]
[1642356471648,26.24000069,149.76,149.67,22.7521]
[1642356472445,26.24000069,149.76,149.68,40.39777041]
[1642356473144,1.79790069,149.75,149.68,40.39777041]
[1642356473344,1.79790069,149.75,149.69,66.83]
[1642356473745,1.79790069,149.75,149.69,0.25]
[1642356473944,1.79790069,149.75,149.7,8.0132]
[1642356474144,2.49790069,149.77,149.7,8.0132]
[1642356474346,2.49790069,149.77,149.7,30.8775]
[1642356474946,50.47198694,149.76,149.7,30.8775]
[1642356475248,50.47198694,149.76,149.7,30.6275]
[1642356475647,50.47198694,149.76,149.71,1.16324288]
[1642356475848,50.47198694,149.76,149.71,1.41324288]
[1642356476049,50.47198694,149.76,149.67,66.83]
[1642356476050,67.95925712,149.7,149.67,66.83]
[1642356476451,67.95925712,149.7,149.67,72.83]
[1642356477151,67.95925712,149.7,149.68,106.06675531]
[1642356477352,67.95925712,149.7,149.68,106.31675531]
[1642356477553,67.95925712,149.7,149.68,114.33035531]
[1642356477952,67.95925712,149.7,149.68,75.0936]
[1642356478954,67.95925712,149.7,149.69,29.85382513]
[1642356479157,67.95925712,149.7,149.68,8.2636]
[1642356482682,67.95925712,149.7,149.68,74.8436]
[1642356483082,67.95925712,149.7,149.68,80.8436]
[1642356483482,1.79790069,149.76,149.71,8.0123]
[1642356483682,1.79790069,149.76,149.72,66.83]
[1642356483883,1.79790069,149.76,149.73,72.17282912]
[1642356484084,0.7,149.77,149.73,72.17282912]
[1642356484286,0.7,149.77,149.73,72.42282912]
[1642356485387,0.7,149.77,149.73,80.43392912]
[1642356485586,0.0001,149.77,149.75,42.0]
[1642356485886,0.0001,149.77,149.76,0.26]
[1642356486086,0.0001,149.77,149.76,68.27492944]
[1642356486285,0.0001,149.77,149.76,77.87492944]
[1642356486486,0.0001,149.77,149.76,84.12492944]
[1642356486887,1.79790069,149.81,149.76,92.13412944]
[1642356487288,1.79790069,149.81,149.77,1.18492944]
[1642356487488,1.79790069,149.81,149.78,9.6]
[1642356487689,1.79790069,149.84,149.79,66.83]
[1642356487891,1.79790069,149.84,149.8,0.26]
[1642356488290,1.79790069,149.84,149.81,66.83]
[1642356488490,1.79790069,149.84,149.82,9.00128699]
[1642356488892,1.79790069,149.89,149.82,9.25128699]
[1642356489391,1.79790069,149.89,149.82,17.25758699]
[1642356489991,48.38239643,149.88,149.82,17.25758699]
[1642356490693,48.38239643,149.88,149.82,8.2563]
[1642356491796,48.38239643,149.88,149.82,35.71960806]
[1642356492599,1.79790069,149.91,149.82,35.71960806]
[1642356492796,1.79790069,149.91,149.82,103.73340498]
[1642356492998,24.30720069,149.92,149.82,103.73340498]
[1642356493495,71.79611419,149.92,149.82,103.73340498]
[1642356493896,71.79611419,149.92,149.82,109.73340498]
[1642356494097,69.9982135,149.92,149.82,109.73340498]
[1642356494297,70.2482135,149.92,149.82,109.73340498]
[1642356495097,70.2482135,149.92,149.83,9.6]
[1642356495296,70.2482135,149.92,149.84,8.0057]
[1642356495496,70.2482135,149.92,149.85,6.21730712]
[1642356497099,70.2482135,149.92,149.85,14.22240712]
[1642356497299,70.2482135,149.92,149.85,87.05240712]
[1642356497699,70.2482135,149.92,149.85,81.05240712]
[1642356498904,70.2482135,149.92,149.85,14.22240712]
[1642356499729,69.9982135,149.92,149.85,14.22240712]
[1642356501130,70.2482135,149.92,149.85,14.22240712]
[1642356502131,69.9982135,149.92,149.85,14.22240712]
[1642356502331,69.9982135,149.92,149.85,14.47240712]
[1642356502731,69.9982135,149.92,149.85,14.22240712]
[1642356504833,70.2482135,149.92,149.85,14.22240712]
[1642356505941,70.2482135,149.92,149.85,14.47240712]
[1642356507436,70.2482135,149.92,149.85,0.25]
[1642356507636,70.2482135,149.92,149.83,17.6062]
[1642356507836,70.2482135,149.92,149.83,17.8562]
[1642356508036,70.2482135,149.92,149.78,49.8855]
[1642356508235,70.2482135,149.92,149.79,38.15828355]
[1642356508439,70.2482135,149.92,149.79,44.15828355]
[1642356508638,80.2572135,149.92,149.79,52.16668355]
[1642356508836,82.05511419,149.92,149.79,52.16668355]
[1642356509337,82.05511419,149.92,149.79,119.24668355]
[1642356510344,81.80511419,149.92,149.79,113.24668355]
[1642356510538,71.79611419,149.92,149.8,1.18379692]
[1642356510739,71.79611419,149.92,149.83,8.0057]
[1642356510941,1.79790069,149.9,149.84,5.12233163]
[1642356511338,1.79790069,149.9,149.84,5.37233163]
[1642356511738,69.9982135,149.92,149.84,5.12233163]
[1642356512440,69.9982135,149.92,149.84,5.37233163]
[1642356512739,22.5093,149.92,149.84,80.20803163]
[1642356513542,22.5093,149.92,149.84,89.80803163]
[1642356513941,24.30720069,149.92,149.84,89.80803163]
[1642356514140,24.55720069,149.92,149.84,89.80803163]
[1642356515844,1.79790069,149.91,149.84,89.80803163]
[1642356522649,1.79790069,149.91,149.84,95.80803163]
[1642356522951,1.79790069,149.91,149.84,89.80803163]
[1642356523251,1.79790069,149.91,149.84,95.80803163]
[1642356524050,1.79790069,149.91,149.85,0.26]
[1642356524251,1.79790069,149.91,149.86,8.0035]
[1642356524451,1.79790069,149.91,149.86,8.2535]
[1642356524951,1.79790069,149.91,149.88,66.83]
[1642356525152,0.00010069,149.91,149.88,74.8335]
[1642356525352,0.00010069,149.91,149.88,81.0835]
[1642356525554,3.77498819,149.95,149.88,81.0835]
[1642356525752,3.77498819,149.96,149.88,75.0835]
[1642356525952,3.77498819,149.96,149.88,8.2535]
[1642356526359,48.76401031,149.95,149.88,8.2535]
[1642356526955,48.76401031,149.95,149.88,14.2535]
[1642356528255,48.76401031,149.95,149.88,8.2535]
[1642356528855,49.01401031,149.95,149.88,8.2535]
[1642356533290,49.01401031,149.95,149.88,0.25]
[1642356533790,49.01401031,149.95,149.87,44.77276607]
[1642356534991,49.01401031,149.95,149.87,52.77686607]
[1642356537197,49.01401031,149.95,149.87,46.77686607]
[1642356538895,49.01401031,149.95,149.85,32.9594]
[1642356539096,24.7485,149.94,149.85,8.2551]
[1642356539695,24.7485,149.94,149.85,8.0051]
[1642356539896,24.9985,149.94,149.83,48.19627508]
[1642356540099,24.9985,149.94,149.83,38.59627508]
[1642356541097,28.77348819,149.94,149.83,38.84627508]
[1642356541495,38.78138819,149.94,149.83,38.84627508]
[1642356542597,48.38138819,149.94,149.83,38.84627508]
[1642356542999,48.38138819,149.94,149.83,44.84627508]
[1642356543703,3.80018409,149.93,149.83,44.84627508]
[1642356543902,38.67934865,149.92,149.83,44.84627508]
[1642356544101,62.62484865,149.92,149.83,44.84627508]
[1642356545602,23.9455,149.92,149.84,66.83]
[1642356545802,23.9455,149.92,149.85,8.0052]
[1642356546205,23.9455,149.92,149.85,14.2552]
[1642356546604,23.9455,149.92,149.86,3.0905401]
[1642356547011,23.9455,149.92,149.86,9.0905401]
[1642356548007,23.9455,149.92,149.86,9.3405401]
[1642356550410,70.71409387,149.92,149.86,9.3405401]
[1642356550708,23.9455,149.92,149.86,9.3405401]
[1642356551711,62.42147808,149.92,149.86,9.3405401]
[1642356553213,62.42147808,149.92,149.86,9.0905401]
[1642356553414,62.42147808,149.92,149.86,9.3405401]
[1642356554016,23.9455,149.92,149.86,9.3405401]
[1642356554615,23.9455,149.92,149.86,9.0905401]
[1642356554915,23.9455,149.92,149.86,9.3405401]
[1642356555115,64.70214544,149.92,149.86,9.3405401]
[1642356555913,64.95214544,149.92,149.86,9.3405401]
[1642356557420,64.95214544,149.92,149.86,6.25]
[1642356558519,64.95214544,149.92,149.87,30.96392178]
[1642356559340,64.95214544,149.92,149.87,36.96392178]
[1642356559740,64.95214544,149.92,149.87,30.96392178]
[1642356560443,64.95214544,149.92,149.87,36.96392178]
[1642356560643,64.95214544,149.92,149.87,30.96392178]
[1642356560840,64.95214544,149.92,149.87,36.96392178]
[1642356561344,64.95214544,149.92,149.87,30.96392178]
[1642356561543,64.95214544,149.92,149.87,36.96392178]
[1642356561744,64.95214544,149.92,149.87,30.96392178]
[1642356561944,64.95214544,149.92,149.86,0.25]
[1642356562144,64.95214544,149.92,149.85,14.2552]
[1642356562945,64.95214544,149.92,149.85,39.6340712]
[1642356567047,64.95214544,149.92,149.85,39.3840712]
[1642356568349,64.95214544,149.92,149.85,39.6340712]
[1642356569849,64.95214544,149.92,149.85,39.3840712]
[1642356572855,64.95214544,149.92,149.85,31.3788712]
[1642356573955,64.70214544,149.92,149.85,31.3788712]
[1642356574155,64.70214544,149.92,149.85,31.6288712]
[1642356578163,64.95214544,149.92,149.85,31.6288712]
[1642356578860,64.95214544,149.92,149.85,25.6288712]
[1642356582163,64.95214544,149.92,149.85,0.25]
[1642356582363,64.95214544,149.92,149.84,31.4652]
[1642356582364,64.95214544,149.92,149.84,23.4594]
[1642356582566,64.95214544,149.92,149.82,8.0068]
[1642356582767,64.95214544,149.92,149.82,0.25]
[1642356583870,64.95214544,149.92,149.81,33.5493425]
[1642356584175,68.72713363,149.92,149.81,33.5493425]
[1642356584570,78.73643363,149.92,149.81,33.5493425]
[1642356584770,37.97978819,149.92,149.81,33.5493425]
[1642356584971,4.02498819,149.92,149.82,33.46642407]
[1642356585170,4.02498819,149.92,149.82,43.06642407]
[1642356585395,4.02498819,149.92,149.82,116.14642407]
[1642356585798,3.77498819,149.94,149.83,0.26]
[1642356586000,3.77498819,149.94,149.83,9.86]
[1642356586198,3.77498819,149.94,149.84,0.38127268]
[1642356586398,3.77498819,149.94,149.85,8.0053]
[1642356586599,3.77498819,149.94,149.86,24.0507]
[1642356586799,3.77498819,149.94,149.87,26.83149721]
[1642356587001,76.11386977,149.95,149.87,26.83149721]
[1642356587200,76.11386977,149.95,149.87,27.08149721]
[1642356588201,76.36386977,149.95,149.87,27.08149721]
[1642356588403,86.37106977,149.95,149.87,27.08149721]
[1642356589403,82.59608158,149.95,149.87,26.83149721]
[1642356590403,86.37106977,149.95,149.87,26.83149721]
[1642356591005,76.36386977,149.95,149.87,26.83149721]
[1642356591205,72.33888158,149.95,149.87,26.83149721]
[1642356591805,72.33888158,149.95,149.86,8.0047]
[1642356593604,76.11386977,149.95,149.86,8.0047]
[1642356593906,76.11386977,149.95,149.85,24.04248668]
[1642356594106,76.11386977,149.95,149.85,24.29248668]
[1642356594305,76.11386977,149.95,149.85,24.04248668]
[1642356594507,85.71386977,149.95,149.85,24.04248668]
[1642356594905,85.96386977,149.95,149.85,24.04248668]
[1642356595305,85.96386977,149.95,149.85,24.29248668]
[1642356595506,95.97116977,149.95,149.85,24.29248668]
[1642356595907,95.97116977,149.95,149.85,24.04248668]
[1642356597909,95.97116977,149.95,149.85,24.29248668]
[1642356599615,95.97116977,149.95,149.85,24.04248668]
[1642356600813,95.97116977,149.95,149.84,8.0058]
[1642356601013,162.80116977,149.95,149.82,31.8584]
[1642356601414,10.009,149.92,149.82,31.8584]
[1642356601614,24.2306,149.91,149.82,31.8584]
[1642356601814,24.2306,149.91,149.81,9.6]
[1642356601815,35.55607509,149.9,149.81,9.6]
[1642356602016,23.9326,149.89,149.8,23.8816]
[1642356602418,23.9326,149.89,149.8,29.8816]
[1642356602817,23.9326,149.89,149.8,30.1316]
[1642356603016,33.9437,149.89,149.8,24.1316]
[1642356603417,33.9437,149.89,149.8,23.8816]
[1642356603615,43.5437,149.89,149.78,468.39646754]
[1642356603815,43.7937,149.89,149.74,137.42251365]
[1642356604014,43.7937,149.89,149.75,53.7292814]
[1642356604415,43.7937,149.89,149.76,8.0099]
[1642356604615,43.7937,149.89,149.77,24.5538]
[1642356604820,43.7937,149.89,149.78,2.69413378]
[1642356605816,43.7937,149.89,149.78,2.94413378]
[1642356606015,43.7937,149.89,149.78,2.69413378]
[1642356606217,43.7937,149.89,149.78,2.94413378]
[1642356610124,43.5437,149.89,149.78,2.94413378]
[1642356610323,23.9326,149.89,149.78,12.13143677]
[1642356610524,35.55607509,149.9,149.79,90.2047]
[1642356610739,35.55607509,149.9,149.8,9.6]
[1642356610925,35.55607509,149.9,149.81,30.87614232]
[1642356611228,35.55607509,149.9,149.82,24.2705]
[1642356611426,35.55607509,149.9,149.82,32.5272]
[1642356611850,35.55607509,149.9,149.82,42.1272]
[1642356613253,35.55607509,149.9,149.82,48.1272]
[1642356615354,35.55607509,149.9,149.82,49.30560299]
[1642356615553,35.55607509,149.9,149.82,48.1272]
[1642356616354,35.55607509,149.9,149.82,47.8772]
[1642356616754,35.55607509,149.9,149.82,48.1272]
[1642356617056,35.55607509,149.9,149.82,47.8772]
[1642356618155,35.55607509,149.9,149.82,48.1272]
[1642356619758,35.80607509,149.9,149.82,48.1272]
[1642356620157,35.80607509,149.9,149.82,47.8772]
[1642356621362,35.80607509,149.9,149.82,48.1272]
[1642356624961,35.80607509,149.9,149.82,40.1205]
[1642356625763,35.80607509,149.9,149.82,39.8705]
[1642356625961,45.81657509,149.9,149.82,30.2705]
[1642356626162,45.81657509,149.9,149.82,6.0]
[1642356626363,45.81657509,149.9,149.79,15.6]
[1642356626566,23.6742,149.89,149.8,24.4798]
[1642356626966,23.6742,149.89,149.8,30.7298]
[1642356627565,40.99691935,149.87,149.8,30.7298]
[1642356627867,41.24691935,149.87,149.8,30.7298]
[1642356628466,41.24691935,149.87,149.8,6.0]
[1642356628965,41.24691935,149.87,149.78,40.01918815]
[1642356629168,23.0524,149.86,149.78,40.01918815]
[1642356629867,23.0524,149.86,149.78,40.26918815]
[1642356631570,23.0524,149.86,149.78,32.26038815]
[1642356631770,23.0524,149.86,149.78,26.26038815]
[1642356632272,23.7382,149.9,149.79,66.83]
[1642356632472,23.7382,149.9,149.8,22.8599]
[1642356632672,33.7487,149.9,149.8,30.8676]
[1642356632877,33.7487,149.9,149.8,31.1176]
[1642356633081,48.62247687,149.89,149.81,7.67022703]
[1642356633476,48.62247687,149.89,149.81,7.92022703]
[1642356634275,48.87247687,149.89,149.81,7.92022703]
[1642356634877,58.88357687,149.89,149.81,7.67022703]
[1642356636380,58.88357687,149.89,149.81,7.92022703]
[1642356636778,58.88357687,149.89,149.81,0.25]
[1642356636979,58.88357687,149.89,149.8,22.8599]
[1642356637378,58.88357687,149.89,149.8,23.1099]
[1642356637580,58.88357687,149.89,149.8,28.8599]
[1642356637778,58.88357687,149.89,149.81,30.18817979]
[1642356639880,58.88357687,149.89,149.8,22.8599]
[1642356640081,58.88357687,149.89,149.78,8.0089]
[1642356640280,58.88357687,149.89,149.78,37.6474]
[1642356640882,58.88357687,149.89,149.79,31.76390745]
[1642356641283,58.88357687,149.89,149.79,37.76390745]
[1642356641480,58.88357687,149.89,149.79,38.01390745]
[1642356644583,58.63357687,149.89,149.8,23.4167]
[1642356644883,58.63357687,149.89,149.8,23.6667]
[1642356645288,58.63357687,149.89,149.8,23.4167]
[1642356645514,58.63357687,149.89,149.8,23.6667]
[1642356645714,1.86301834,149.87,149.8,23.4167]
[1642356645927,1.86301834,149.87,149.8,23.6667]
[1642356647116,1.86301834,149.87,149.8,29.4167]
[1642356647316,1.86301834,149.87,149.8,29.6667]
[1642356647515,25.33831834,149.87,149.8,23.6667]
[1642356648218,25.58831834,149.87,149.8,23.6667]
[1642356648416,25.58831834,149.87,149.8,23.4167]
[1642356648616,25.58831834,149.87,149.8,23.6667]
[1642356650627,25.33831834,149.87,149.8,23.6667]
[1642356651825,25.58831834,149.87,149.8,23.6667]
[1642356653833,25.33831834,149.87,149.8,23.6667]
[1642356654429,25.33831834,149.87,149.8,29.6667]
[1642356654830,25.33831834,149.87,149.8,23.6667]
[1642356655230,25.58831834,149.87,149.8,23.6667]
[1642356655428,25.58831834,149.87,149.8,29.6667]
[1642356657030,25.58831834,149.87,149.8,23.6667]
[1642356658732,25.58831834,149.87,149.8,29.6667]
[1642356658937,25.58831834,149.87,149.8,23.6667]
[1642356660933,1.86301834,149.86,149.8,23.6667]
[1642356662635,1.86301834,149.86,149.8,23.4167]
[1642356663235,1.86301834,149.86,149.8,29.4167]
[1642356663436,1.86301834,149.86,149.8,23.4167]
[1642356664242,25.58831834,149.87,149.8,23.4167]
[1642356664638,25.58831834,149.87,149.8,29.4167]
[1642356665041,25.58831834,149.87,149.8,23.4167]
[1642356665240,35.60081834,149.87,149.77,78.33011943]
[1642356665441,9.6,149.86,149.77,1.90011943]
[1642356665839,1.70077588,149.85,149.77,1.90011943]
[1642356666040,158.49690795,149.84,149.73,3.40040563]
[1642356666240,58.34192629,149.84,149.74,1.90419618]
[1642356666440,10.0171,149.81,149.74,1.90419618]
[1642356666646,18.9121,149.81,149.74,1.90419618]
[1642356666844,11.30077588,149.8,149.74,1.90419618]
[1642356667342,1.70077588,149.79,149.66,3.40040563]
[1642356667544,1.27015393,149.75,149.66,27.41441221]
[1642356667744,20.89105393,149.75,149.66,33.41441221]
[1642356667946,21.14105393,149.75,149.66,27.41441221]
[1642356668543,21.14105393,149.75,149.66,24.01400658]
[1642356670249,10.87015393,149.75,149.66,24.01400658]
[1642356670454,10.87015393,149.75,149.67,66.83]
[1642356670850,10.87015393,149.75,149.67,73.08]
[1642356672779,10.87015393,149.75,149.67,6.25]
[1642356672980,10.87015393,149.75,149.67,0.25]
[1642356673179,10.87015393,149.75,149.67,6.25]
[1642356673781,10.87015393,149.75,149.67,0.25]
[1642356673981,11.12015393,149.75,149.67,6.0]
[1642356674583,11.12015393,149.75,149.66,38.02910658]
[1642356674781,21.14055393,149.75,149.66,30.01400658]
[1642356674984,21.14055393,149.75,149.66,6.0]
[1642356675183,21.14055393,149.75,149.66,0.25]
[1642356675382,21.14055393,149.75,149.64,14.2663]
[1642356675983,21.14055393,149.75,149.64,43.055267]
[1642356676585,21.14055393,149.75,149.64,37.055267]
[1642356677990,21.14055393,149.75,149.64,43.055267]
[1642356678386,20.89055393,149.75,149.64,43.055267]
[1642356681788,20.89055393,149.75,149.64,37.055267]
[1642356681989,21.14055393,149.75,149.64,29.038967]
[1642356682191,29.56532981,149.75,149.64,6.0]
[1642356682395,29.56532981,149.75,149.63,30.4747]
[1642356682593,24.7844,149.74,149.58,9.6]
[1642356682923,10.0242,149.7,149.59,24.0565]
[1642356683123,41.78547496,149.69,149.6,33.03933278]
[1642356683522,41.78547496,149.69,149.6,40.22258215]
[1642356684023,33.2716,149.72,149.61,66.83]
[1642356684225,19.6224,149.72,149.61,91.6307]
[1642356684423,19.6224,149.72,149.61,99.06394937]
[1642356685027,41.82339688,149.71,149.61,97.8807]
[1642356685225,41.82339688,149.71,149.62,1.18324937]
[1642356685425,41.82339688,149.71,149.62,7.43324937]
[1642356685626,42.07339688,149.71,149.62,6.25]
[1642356685826,41.82339688,149.71,149.62,6.25]
[1642356686026,42.07339688,149.71,149.62,0.25]
[1642356686226,41.82339688,149.71,149.63,1.18324937]
[1642356686426,41.82339688,149.71,149.63,6.25]
[1642356686825,41.82339688,149.71,149.63,7.43324937]
[1642356687026,41.82339688,149.71,149.63,6.25]
[1642356687227,41.82339688,149.71,149.63,0.25]
[1642356687428,41.82339688,149.71,149.63,6.25]
[1642356687629,41.82339688,149.71,149.63,6.0]
[1642356687828,41.82339688,149.71,149.63,6.25]
[1642356688027,41.82339688,149.71,149.63,0.25]
[1642356688930,42.07339688,149.71,149.62,14.2673]
[1642356690132,41.82339688,149.71,149.62,14.2673]
[1642356691833,42.07339688,149.71,149.62,14.2673]
[1642356692032,42.07339688,149.71,149.62,14.0173]
[1642356692530,52.09639688,149.71,149.62,6.0]
[1642356692933,52.09639688,149.71,149.61,30.8007]
[1642356694163,52.09639688,149.71,149.61,31.0507]
[1642356694533,52.09639688,149.71,149.61,39.0687]
[1642356695835,24.1344,149.7,149.61,39.0687]
[1642356698539,51.84639688,149.71,149.61,39.0687]
[1642356699637,51.84639688,149.71,149.61,49.85194937]
[1642356700040,52.09639688,149.71,149.61,48.6687]
[1642356701241,42.07339688,149.71,149.62,8.0174]
[1642356701440,42.07339688,149.71,149.62,76.28064937]
[1642356701667,42.07339688,149.71,149.62,15.20064937]
[1642356701839,42.07339688,149.71,149.62,14.0174]
[1642356703441,42.07339688,149.71,149.62,15.20064937]
[1642356703841,42.07339688,149.71,149.62,15.45064937]
[1642356706646,42.07339688,149.71,149.62,15.20064937]
[1642356707649,42.07339688,149.71,149.62,14.0174]
[1642356707850,42.07339688,149.71,149.62,14.2674]
[1642356709280,42.07339688,149.71,149.62,15.45064937]
[1642356710589,23.5713,149.7,149.62,15.45064937]
[1642356712686,23.5713,149.7,149.62,14.2674]
[1642356713486,23.5713,149.7,149.62,15.45064937]
[1642356713685,23.5713,149.7,149.62,7.43324937]
[1642356713886,23.5713,149.7,149.62,6.25]
[1642356714087,23.5713,149.7,149.62,7.43324937]
[1642356714286,23.5713,149.7,149.62,1.43324937]
[1642356714487,23.5713,149.7,149.62,7.43324937]
[1642356714687,23.8213,149.7,149.62,7.43324937]